Cogmind - Beta 13 @@@ ROGUE MODE // 2024.06.02 @ 16:26:06 Player: Sionnis Result: Destroyed by K0-M0V(R) with Subdweller Machine Gun Performance ------------- Evolutions (0) 0 Regions Visited (3) 600 Robots Destroyed (33) 165 Value Destroyed (725) 725 Prototype IDs (0) 0 Alien Tech Used (0) 0 Bonus (0) 0 TOTAL SCORE: 1490 Bonus ------- None Cogmind --------- Core Integrity 0/250 Matter 281/300 Energy 74/100 System Corruption 0% Temperature Cool (0) Movement Rolling (120) Ox1 Location -10/Subcaves Parts ------- > --- POWER (1) -------- (None) > --- PROPULSION (2) --- Subdweller Monowheel > --- UTILITY (2) ------ Large Storage Unit Signal Interpreter > --- WEAPON (2) ------- Subdweller Beam Cannon Shotgun > --- INVENTORY (15) --- Ion Engine Light Ion Engine Light Ion Engine Light Nuclear Core Wheel Wheel Wheel Structural Scanner Light Armor Plating Shotgun Heavy Battle Rifle Subdweller Shrapnel Launcher Makeshift Sword Peak State ------------ > --- POWER ------------ Subdweller Power Source > --- PROPULSION ------- Subdweller Monowheel Subdweller Monowheel > --- UTILITY ---------- Large Storage Unit Targeting Computer > --- WEAPON ----------- Subdweller Laser Shotgun > --- INVENTORY -------- Ion Engine Light Ion Engine Light Ion Engine Light Nuclear Core Wheel Wheel Wheel Subdweller Monowheel Structural Scanner Signal Interpreter Shotgun Shotgun Heavy Battle Rifle Subdweller Shrapnel Launcher Makeshift Sword [Rating: 14] Favorites ----------- Power Subdweller Power Source Engine Subdweller Power Source Propulsion Wheel Wheel Wheel Utility Large Storage Unit Storage Large Storage Unit Processor Targeting Computer Protection Light Armor Plating Weapon Shotgun Energy Gun Subdweller Laser Energy Cannon Subdweller Beam Cannon Ballistic Gun Shotgun Build | -11 -10 -10 -10 ------- Run | Yrd Mat Min Sub Slots Evolved . | . . . . Power . | . . . . Propulsion . | . . . . Utility . | . . . . Weapon . | . . . . Parts Attached 31 | 2 5 5 19 Power 4 | . 1 1 2 Engine 4 | . 1 1 2 Core . | . . . . Reactor . | . . . . Propulsion 11 | 2 . 2 7 Treads . | . . . . Leg . | . . . . Wheel 11 | 2 . 2 7 Hover . | . . . . Flight . | . . . . Utility 4 | . 2 . 2 Device . | . . . . Storage 1 | . 1 . . Processor 2 | . 1 . 1 Hackware . | . . . . Protection 1 | . . . 1 Artifact . | . . . . Weapon 12 | . 2 2 8 Energy Gun 2 | . . . 2 Energy Cannon 1 | . . . 1 Ballistic Gun 9 | . 2 2 5 Ballistic Cannon . | . . . . Launcher . | . . . . Special Weapon . | . . . . Impact Weapon . | . . . . Slashing Weapon . | . . . . Piercing Weapon . | . . . . Special Melee Weapon . | . . . . Unidentified Prototypes . | . . . . Parts Lost 12 | . . 5 7 Power 2 | . . 1 1 Propulsion 4 | . . 2 2 Utility . | . . . . Weapon 6 | . . 2 4 Highest Loss Streak 4 | . . 4 3 To Critical Strikes . | . . . . Average Slot Usage (%) 88 | . 83 85 91 Engine 6 | . 5 2 7 Wheel 26 | . 28 25 26 Storage 13 | . 12 14 14 Processor 11 | . 10 14 10 Protection 2 | . . . 3 Energy Gun 7 | . . . 12 Energy Cannon 2 | . . . 4 Ballistic Gun 17 | . 25 28 10 Naked Turns . | . . . . Heaviest Build 40 | . 31 31 40 Greatest Support 40 | 20 20 20 40 Greatest Overweight (x) 1 | . 1 1 1 Average Overweight (x) . | . . 1 . Largest Inventory Capacity 15 | 5 15 15 15 Average Capacity 14 | 5 13 15 15 Most Carried 15 | . 15 15 15 Average Carried 13 | . 8 13 14 Final Capacity 15 | 5 15 15 15 Final Carried 15 | . 15 13 13 Class Distribution -------------------- 70% | Mutant 29% | Scavenger-Mutant Dominant Class ---------------- Mutant | -10/Materials Mutant | -10/Mines Scavenger-Mutant | -10/Subcaves Resources | -11 -10 -10 -10 ----------- Run | Yrd Mat Min Sub Matter Collected 1026 | 134 209 405 278 Remotely . | . . . . Salvage Created 1020 | . 251 347 422 Parts 71 | . 21 20 30 Haulers Intercepted . | . . . . Recyclers Shooed 1 | . . 1 . Parts Field Recycled . | . . . . Retrieved Matter . | . . . . Parts Self-Destructed 12 | . . . 12 Prevented . | . . . . Kills | -11 -10 -10 -10 ------- Run | Yrd Mat Min Sub Combat Hostiles Destroyed 34 | . 7 16 11 Guns 31 | . 7 16 8 Cannons 3 | . . . 3 Classes Destroyed 11 | . 4 3 4 Worker 1 | . . 1 . Recycler 4 | . 2 2 . Turret 2 | . . . 2 Watcher 1 | . 1 . . Swarmer 13 | . 6 4 3 Grunt 5 | . 1 2 2 Sentry 1 | . . . 1 Demolisher 1 | . . 1 . Artisan 1 | . . . 1 Subdweller 5 | . . . 5 Assembled 9 | . . 9 . Best Kill Streak 15 | . 5 15 3 Combat Bots Only 14 | . 3 14 2 Max Kills in Single Turn 2 | . 1 2 1 Gunslinging . | . . . . Exploded . | . . . . Melee . | . . . . Uniques/NPCs Destroyed . | . . . . Combat | -11 -10 -10 -10 -------- Run | Yrd Mat Min Sub Hostile Shots Fired 171 | . 29 43 99 Missed 50 | . 12 12 26 Damage Taken 1569 | . 133 452 984 Core 256 | . 24 72 160 Absorbed by Shields . | . . . . Core Remaining (%) 100 | 100 . . . Volleys Fired 113 | . 22 35 56 Largest 2 | . 2 2 2 Hottest 140 | . 46 46 140 Shots Fired 220 | . 44 70 106 Gun 193 | . 44 70 79 Cannon 27 | . . . 27 Launcher . | . . . . Special . | . . . . Kinetic 150 | . 44 70 36 Thermal 70 | . . . 70 Explosive . | . . . . Electromagnetic . | . . . . Robot Hit Streak 16 | . 8 10 16 Robot Miss Streak 10 | . 10 4 4 Penetration Max . | . . . . Secondary Targets 3 | . 2 1 . Max Gunslinging Chain 1 | . 1 1 . Shots Hit Robots 156 | . 31 58 67 Core Hits 80 | . 16 38 26 Critical Kills . | . . . . Critical Parts Destroyed 3 | . . 1 2 Critical Strikes 4 | . . 1 3 Destroy 4 | . . 1 3 Melee Attacks . | . . . . Impact . | . . . . Slashing . | . . . . Piercing . | . . . . Sneak Attacks . | . . . . Combat Hostiles . | . . . . Follow-up Attacks . | . . . . Damage Inflicted 2762 | . 448 886 1428 Guns 2433 | . 448 886 1099 Cannons 329 | . . . 329 Explosions . | . . . . Melee . | . . . . Ramming . | . . . . Kinetic 1878 | . 448 886 544 Thermal 884 | . . . 884 Explosive . | . . . . Electromagnetic . | . . . . Impact . | . . . . Slashing . | . . . . Piercing . | . . . . Highest Corruption . | . . . . Average Corruption . | . . . . Corruption Purged . | . . . . Corruption Blocked . | . . . . Overload Shots . | . . . . Overflow Damage 2 | . . . 2 Projectiles 2 | . . . 2 Explosions . | . . . . Melee . | . . . . Knockbacks . | . . . . Impact . | . . . . Kinetic . | . . . . Secondary . | . . . . Self-Inflicted Damage . | . . . . Shots . | . . . . Rammed . | . . . . Targets Rammed . | . . . . Kicked . | . . . . Crushed . | . . . . Highest Temperature 369 | . . 10 369 Average Temperature 106 | . . 4 110 Received Heat Transfer 377 | . 6 44 327 Effects 1 | . . . 1 Shutdowns 1 | . . . 1 Siege Activations . | . . . . Robots Corrupted . | . . . . Combat Hostiles . | . . . . Parts Fried . | . . . . Impact Corruptions . | . . . . Robots Melted . | . . . . Combat Hostiles . | . . . . Parts Melted 1 | . . . 1 Heat Transferred 1119 | . . . 1119 Parts Sabotaged . | . . . . Parts Stolen . | . . . . Parts Stripped . | . . . . Power Chain Reactions . | . . . . Alert | -11 -10 -10 -10 ------- Run | Yrd Mat Min Sub Peak Influence 247 | . 237 247 . Initial 92 | . . 92 . Average 131 | . 63 200 . Maximum Alert Level 1 | . 1 1 . Low Security (%) 71 | 100 93 50 . Level 1 28 | . 6 49 . Level 2 . | . . . . Level 3 . | . . . . Level 4 . | . . . . Level 5 . | . . . . High Security . | . . . . Max Security . | . . . . Squads Dispatched 2 | . 2 . . Investigation . | . . . . Extermination . | . . . . Reinforcement 2 | . 2 . . Assault . | . . . . Garrison . | . . . . Intercept . | . . . . Searches Triggered . | . . . . Construction Impeded . | . . . . Haulers Reinforced . | . . . . Active Scanning Responses . | . . . . Cargo Convoy Interrupts . | . . . . Stealth | -11 -10 -10 -10 --------- Run | Yrd Mat Min Sub Distress Signals 2 | . 2 . . Communications Jammed . | . . . . Distress Signals . | . . . . Times Spotted 78 | . 11 15 52 Peak Tracking Total 8 | . 4 8 3 Tactical Retreats 5 | . . . 5 Traps | -11 -10 -10 -10 ------- Run | Yrd Mat Min Sub Traps Triggered . | . . . . Indirectly . | . . . . Trap Hack Attempts . | . . . . Triggered . | . . . . Disarmed . | . . . . Reprogrammed . | . . . . Reused . | . . . . Traps Extracted . | . . . . Installed . | . . . . Triggered . | . . . . Machines | -11 -10 -10 -10 ---------- Run | Yrd Mat Min Sub Machines Disabled 2 | . . . 2 Max in Single Turn 1 | . . . 1 Machines Repaired . | . . . . Machines Dismantled . | . . . . Machines Sabotaged . | . . . . Overloaded Fab Kills . | . . . . Hacking | -11 -10 -10 -10 --------- Run | Yrd Mat Min Sub Machines Accessed . | . . . . Terminals . | . . . . Fabricators . | . . . . Repair Stations . | . . . . Recycling Units . | . . . . Scanalyzers . | . . . . Garrison Access . | . . . . Total Hacks . | . . . . Successful . | . . . . Failed . | . . . . Catastrophic . | . . . . Database Lockouts . | . . . . Manual . | . . . . Terminals . | . . . . Fabricators . | . . . . Repair Stations . | . . . . Recycling Units . | . . . . Scanalyzers . | . . . . Garrison Access . | . . . . Terminal Hacks . | . . . . Fabricator Hacks . | . . . . Repair Station Hacks . | . . . . Recycling Unit Hacks . | . . . . Scanalyzer . | . . . . Garrison Access Hacks . | . . . . Unauthorized Hacks . | . . . . Terminals . | . . . . Fabricators . | . . . . Repair Stations . | . . . . Recycling Units . | . . . . Scanalyzers . | . . . . Garrison Access . | . . . . Data Cores Recovered . | . . . . Used . | . . . . Hacking Detections . | . . . . Full Trace Events . | . . . . Feedback Events . | . . . . Feedback Blocked . | . . . . Robot Schematics Acquired . | . . . . Robots Built . | . . . . Authchips . | . . . . Time . | . . . . Total Robot Build Rating . | . . . . Part Schematics Acquired . | . . . . Parts Built . | . . . . Authchips . | . . . . Time . | . . . . Total Part Build Rating . | . . . . Parts Repaired . | . . . . Time . | . . . . Parts Recycled . | . . . . Recycled Matter . | . . . . Retrieved Matter . | . . . . Retrieved Components . | . . . . Parts Scanalyzed . | . . . . Part Schematics Acquired . | . . . . Parts Damaged . | . . . . Bothacking | -11 -10 -10 -10 ------------ Run | Yrd Mat Min Sub Used RIF Installer . | . . . . Robots Hacked . | . . . . Non-combat . | . . . . Combat . | . . . . Robot Hacks Applied . | . . . . Relay Couplers Released . | . . . . Fabnet Peak Effective % . | . . . . Robots Rewired . | . . . . Allies Hacked . | . . . . Hacks Repelled . | . . . . Allies | -11 -10 -10 -10 -------- Run | Yrd Mat Min Sub Total Allies . | . . . . Largest Group . | . . . . Highest-Rated Group . | . . . . Highest-Rated Ally . | . . . . Total Orders . | . . . . Ally Attacks . | . . . . Total Damage . | . . . . Kills . | . . . . Allies Corrupted . | . . . . Allies Melted . | . . . . Intel | -11 -10 -10 -10 ------- Run | Yrd Mat Min Sub Robot Analysis Total . | . . . . Derelict Logs Recovered 3 | . . 2 1 Drone Launches . | . . . . Drone Recoveries . | . . . . Exploration | -11 -10 -10 -10 ------------- Run | Yrd Mat Min Sub Turns Passed 1887 | 18 367 393 1109 Spaces Moved 1344 | 21 284 222 817 Core 4 | 4 . . . Treads . | . . . . Legs . | . . . . Wheels 1340 | 17 284 222 817 Hover . | . . . . Flight . | . . . . Fastest Speed 50 | 50 80 95 95 Average Speed 101 | 74 92 95 107 Slowest Speed 120 | 80 95 95 120 Overloaded Moves . | . . . . Propulsion Burnouts . | . . . . Robots Hopped . | . . . . Cave-ins Triggered . | . . . . Exploration Rate (%) 34 | 3 40 42 52 Regions Visited 3 Branch Regions 2 Pre-discovered Areas 1 | . . . 1 Known Exits Taken . | . . . . Unknown Exits Taken 3 | 1 1 1 . Scrap Searched 5 | . . 1 4 Spaces Dug . | . . . . Terrain Destroyed 3 | . . . 3 Melee . | . . . . Projectile 3 | . . . 3 AOE . | . . . . Terrain Rammed . | . . . . Walls Destroyed . | . . . . Machines Disabled . | . . . . Actions | -11 -10 -10 -10 --------- Run | Yrd Mat Min Sub Total 1641 | 22 341 335 943 Wait 118 | . 14 68 36 Move 1341 | 20 283 221 817 Hop . | . . . . Pick Up 23 | . 16 4 3 Fast Attach 17 | 2 5 . 10 Attach 9 | . . 5 4 Detach 2 | . . . 2 Swap 5 | . . . 5 Drop 13 | . 1 2 10 Fire 113 | . 22 35 56 Melee . | . . . . Ram . | . . . . Kick . | . . . . Crush . | . . . . Escape Stasis . | . . . . Rewire . | . . . . Trap . | . . . . Miscellaneous . | . . . . Route ------- -11/Scrapyard -10/Materials -10/Mines -10/Subcaves (discovered 2 exits: [*Mat] / *Rec) History --------- Turn | Location | Event 8 | -11/Scrapyard | Discovered new exit (range 15) 19 | -11/Scrapyard | Entered Materials 128 | -10/Materials | Discovered new exit (range 9) 302 | -10/Materials | Build established: Mutant 386 | -10/Materials | Entered Mines 387 | -10/Mines | Assembled infested the area 398 | -10/Mines | Met a Derelict bent on vengeance 470 | -10/Mines | Destroyed 14 combat bots 470 | -10/Mines | Lost 4 parts (1p2n1w) 481 | -10/Mines | Learned 2 Materials zone layouts 724 | -10/Mines | Learned Materials terminal intel 768 | -10/Mines | Discovered new exit (range 5) 779 | -10/Mines | Entered Subcaves 858 | -10/Subcaves | Disturbed a concealed Subdweller 1171 | -10/Subcaves | Ambushed by Subdweller buried in earth 1282 | -10/Subcaves | Core integrity fell below 50% 1414 | -10/Subcaves | Shifting Twisted Machinery released Flamer 1422 | -10/Subcaves | Shifting Twisted Machinery released Spk. Treads 1481 | -10/Subcaves | Discovered new exit (range 15) 1572 | -10/Subcaves | Learned location of Zion (-6) 1616 | -10/Subcaves | Build established: Scavenger-Mutant 1689 | -10/Subcaves | Core integrity fell below 20% 1738 | -10/Subcaves | Discovered new exit (range 12) 1785 | -10/Subcaves | Identified exit to Recycling 1875 | -10/Subcaves | Ambushed by angry Subdweller bent on revenge 1888 | -10/Subcaves | Destroyed by K0-M0V(R) with Subdweller Machine Gun Last Messages --------------- Source. 01757_ Machine disabled. 01757_ Sub. Monowheel destroyed. 01758_ Flight Unit fries itself beyond repair. 01763_ Autobeam Turret destroyed. 01766_ Power failure, Lgt. Ion Engine shutdown. 01772_ Autobeam Turret destroyed. 01785_ EXIT=IDENTIFIED: RECYCLING 01870_ Destroyed Wheel. 01870_ 26-SSL(u) cries out in pain. 01870_ 26-SSL(u) destroyed. 01875_ K0-M0V(R) angrily emerges from the Twisted Machinery. 01875_ K0-M0V(R): "OHNO!" 01878_ K0-M0V(R) suffers critical hit (Destroy). 01878_ Sub. Laser destroyed. 01880_ Lgt. Ion Engine destroyed. 01884_ Sub. Beam Cannon shoots sparks and powers down. 01886_ Shotgun destroyed. Map ----- +----------------------------------------------------+ | | | | | | | ?????????????????????????????????????????????????? | | ?????????????????????????????????????????????????? | | ?????????????????????????????????????????????????? | | ?????????????????????????????????????????????????? | | ?????????????????????????????????????????????????? | | ?????????????????????????????????????????????????? | | ?????????????????????????????????????????????????? | | ?????????????????????????????????????????????????? | | ?????????????????????????????????????????????????? | | ?????????????????????????????????????????????????? | | ?????????????????????????????????????????????????? | | ?????????????????????????????????????????????????? | | ?????????????????????????????????????????????????? | | ?????????????????????????????????????????????????? | | ???????????????????????####??????????????????????? | | ?????????????????????###" ####????###???????????## | | ??????????????????####" " ###### ###??######## | | ??????????????# ### =" "" #??# # | | ????????# |% """ ## # ##### ## | | ?????????? # #### # """ ###### #% ### | | ?????????????????###?# R ## #####" % ### | | ?????????????????????##" # # # # # ## | | ??????????????????????##"@ "" ## ###### ## | | ??????????????????????#" "# # #????## ### | | ??????????????????????## ##### #????## ##?## | | ???????????????????????# ###### # &##???# ##??# | | ?????????????????####### ## # #[% #???# #### | | ?????????????????"" & ###?# # | | ???????????????????""" #### # | | ???????????????????""" ## # %# #### | | ???????????????????""########### ## ### | | ???????????????????"#??????????# "## | | ???????????????????????????????# ### | | ????????????????????????????#### %#### & " | | ????????????????????????????#" "##!%& " | | ????????????????????????????# ###& ### "" | | ????????????????????????????# % #?# ##?### " | | ????????????????????????????#" % "#?###???## " | | ????????????????????????????#" " "#???????# " | | ????????????????????????????#" " ""#??????## "" | | ????????????????????????????#####>#####?????## """ | | ????????????????????????????????###?????????# """ | | ????????????????????????????????????????????# " | | ????????????????????????????????????????????#### | | ??????????????????????????????????????????????# | | ??????????????????????????????????????????????## = | | ??????????????????????????????????????????????# | +----------------------------------------------------+ Best States ------------- Heat Dissipation 25 Energy Generation 15 Energy Capacity 250 Matter Stores 300 Matter Capacity 300 Sight Range 16 Terrain Scan Density 10 Armor Coverage 150 Evasion (%) 44 Targeting Accuracy 5 Item Schematics ----------------- None Robot Schematics ------------------ None Fabricated ------------ Nothing Alien Tech Used ----------------- None Achievements -------------- None Challenges ------------ None Game ------ Seed gottagofast Manual? 1 Play Time 00:15:05 Cumulative 155.4 hours Start 2024.06.02 @ 16:05:05 End 2024.06.02 @ 16:26:06 Sessions 1 Manual Loads 0 Difficulty Rogue Special Mode None Game No. 149 Rogue 149 Adventurer 0 Explorer 0 Win Type - Total 9 Types 8/0/0/1/0/0/0/0/0 Lore% 67 Gallery% 78 Achievement% 64 Wizard Run 0 Options --------- Layout 1 ASCII 0 Keyboard 0 Movement Numpad Keybinds 0 Fullscreen 1 Font 24/Smallcaps Map View 50x35 Zoom Use 0% Tactical HUD 1 Map Filters NONE Filters NONE Steam 1 RUN: b28bcc9b-12e6-4cb3-a737-a2d28f4190c6